bitfinex/quotes_SOLUSD_20250902
["timestamp","ask_amount","ask_price","bid_price","bid_amount"]
[1756803534432,52.05559401,203.55,203.54,0.03]
[1756803534841,54.84050387,203.55,203.54,0.03]
[1756803536445,16.38050387,203.55,203.54,0.03]
[1756803536632,54.84050387,203.55,203.54,0.03]
[1756803538144,54.84050387,203.55,203.54,0.44]
[1756803538343,41.24490986,203.55,203.54,5.3530392]
[1756803538540,0.28432314,203.58,203.54,5.3530392]
[1756803538847,38.46,203.57,203.55,0.41]
[1756803539423,41.24490986,203.57,203.55,0.41]
[1756803539741,14.52991715,203.56,203.54,0.03]
[1756803540039,52.33991715,203.55,203.54,0.03]
[1756803540222,52.98991715,203.55,203.54,0.03]
[1756803540424,55.77482701,203.55,203.54,0.03]
[1756803540639,17.55341356,203.57,203.54,0.03]
[1756803540838,38.46,203.56,203.54,0.03]
[1756803541232,41.24490986,203.56,203.54,0.03]
[1756803541933,17.31482701,203.55,203.54,0.03]
[1756803547451,22.22762484,203.55,203.54,0.03]
[1756803547942,17.31482701,203.55,203.54,0.03]
[1756803548338,22.22762484,203.55,203.54,0.03]
[1756803549942,24.19734046,203.55,203.54,0.03]
[1756803551036,39.59559401,203.52,203.51,0.03]
[1756803551241,81.12482701,203.52,203.51,0.03]
[1756803551572,81.81482701,203.52,203.51,0.03]
[1756803551742,83.78463964,203.52,203.51,0.03]
[1756803552376,88.69816165,203.52,203.51,0.03]
[1756803554542,99.83780109,203.52,203.51,0.03]
[1756803554974,107.26228081,203.52,203.51,0.03]
[1756803555671,114.43434125,203.52,203.51,0.03]
[1756803556336,0.28432314,203.45,203.4,0.41]
[1756803556541,38.46,203.44,203.41,0.41]
[1756803556799,13.87991715,203.43,203.39,2.78490986]
[1756803556951,13.87991715,203.43,203.42,0.41]
[1756803557164,52.33991715,203.43,203.4,0.41]
[1756803557368,52.33991715,203.43,203.41,0.41]
[1756803557872,52.33991715,203.43,203.42,0.41]
[1756803558249,52.33991715,203.43,203.4,0.41]
[1756803558579,52.33991715,203.43,203.41,0.41]
[1756803559754,52.33991715,203.43,203.39,8.11151441]
[1756803559951,52.33991715,203.43,203.4,0.41]
[1756803560154,52.33991715,203.43,203.41,0.41]
[1756803561065,52.33991715,203.43,203.39,8.14151441]
[1756803561274,52.33991715,203.43,203.4,0.41]
[1756803561461,38.46,203.42,203.4,3.19490986]
[1756803561640,13.59559401,203.46,203.42,26.0]
[1756803561837,38.46,203.45,203.43,3.19490986]
[1756803562042,38.46,203.45,203.44,0.41]
[1756803562761,13.59559401,203.47,203.44,5.32543425]
[1756803562970,13.59559401,203.47,203.45,0.41]
[1756803563161,38.46,203.46,203.45,3.19490986]
[1756803564469,38.46,203.46,203.44,7.70034411]
[1756803564670,38.46,203.46,203.45,2.78490986]
[1756803564973,38.46,203.46,203.43,8.11056474]
[1756803565156,38.46,203.46,203.43,5.32565488]
[1756803565358,38.46,203.46,203.43,8.11056474]
[1756803565557,38.46,203.46,203.43,5.32565488]
[1756803565760,38.46,203.46,203.43,8.11056474]
[1756803567168,38.46,203.46,203.43,5.32565488]
[1756803567373,38.46,203.46,203.43,33.70056474]
[1756803568476,38.46,203.46,203.43,26.0]
[1756803568659,39.15,203.46,203.43,26.0]
[1756803568859,39.15,203.46,203.42,7.70079993]
[1756803569267,39.15,203.46,203.42,8.11079993]
[1756803570678,0.69,203.45,203.42,2.78490986]
[1756803570858,38.46,203.44,203.42,2.78490986]
[1756803571060,38.46,203.43,203.42,28.78490986]
[1756803571485,38.46,203.43,203.42,2.78490986]
[1756803572589,38.46,203.43,203.42,7.70084732]
[1756803573688,38.46,203.43,203.42,4.91593746]
[1756803573867,38.46,203.43,203.42,7.70084732]
[1756803574372,38.46,203.43,203.42,4.91593746]
[1756803575485,38.46,203.43,203.42,7.70084732]
[1756803576200,38.46,203.43,203.42,28.78490986]
[1756803576394,38.46,203.43,203.42,2.78490986]
[1756803576702,38.46,203.43,203.42,26.0]
[1756803576898,38.46,203.43,203.42,29.19490986]
[1756803577671,38.46,203.43,203.42,33.70084732]
[1756803582295,38.46,203.43,203.42,34.11084732]
[1756803582474,38.46,203.43,203.42,33.70084732]
[1756803583205,38.46,203.43,203.42,30.91593746]
[1756803583394,38.46,203.43,203.42,33.70084732]
[1756803583705,38.46,203.43,203.42,35.27112086]
[1756803584703,38.46,203.43,203.42,30.91593746]
[1756803584915,38.46,203.43,203.42,35.27112086]
[1756803585401,39.17,203.43,203.42,26.0]
[1756803585609,39.17,203.43,203.42,30.3551834]
[1756803585774,39.17,203.43,203.42,35.27112086]
[1756803586825,39.17,203.43,203.42,30.91593746]
[1756803586981,39.17,203.43,203.42,35.27112086]
[1756803587397,38.46,203.43,203.42,35.27112086]
[1756803590079,38.46,203.43,203.42,30.91593746]
[1756803590416,38.46,203.43,203.42,35.27112086]
[1756803592985,0.77,203.49,203.42,48.1131261]
[1756803593179,0.77,203.49,203.48,4.3551834]
[1756803593402,39.15,203.48,203.43,0.41]
[1756803594279,39.15,203.48,203.42,43.3479427]
[1756803594500,39.15,203.48,203.45,0.14216157]
[1756803594797,39.15,203.48,203.47,4.3551834]
[1756803596306,39.15,203.48,203.42,4.91593746]
[1756803596604,18.66077741,203.47,203.42,9.27112086]
[1756803596784,0.71,203.46,203.42,9.27112086]
[1756803596977,39.15,203.45,203.42,9.27112086]
[1756803597181,0.71,203.44,203.42,9.27112086]
[1756803597403,0.71,203.43,203.42,9.27112086]
[1756803597599,0.64104698,203.43,203.42,9.27112086]
[1756803597990,4.99623038,203.43,203.39,0.03]
[1756803598290,4.3551834,203.41,203.39,0.03]
[1756803598693,38.44,203.42,203.39,0.03]
[1756803598896,38.44,203.42,203.39,4.94649637]
[1756803599292,38.44,203.41,203.39,4.94649637]
[1756803599504,0.71,203.4,203.39,4.94649637]
[1756803600194,0.71,203.4,203.39,0.03]
[1756803600591,4.91377066,203.51,203.42,26.0]
[1756803600794,39.15,203.48,203.43,4.3551834]
[1756803600997,0.71,203.47,203.43,4.3551834]
[1756803601198,0.71,203.46,203.42,30.3551834]
[1756803601400,39.15,203.45,203.42,30.3551834]
[1756803601600,0.71,203.44,203.42,30.3551834]
[1756803602092,38.44,203.45,203.43,4.3551834]
[1756803602295,38.44,203.45,203.43,9.27087921]
[1756803602493,0.71,203.44,203.43,9.27087921]
[1756803603108,0.71,203.44,203.43,4.91569581]
[1756803603312,5.0651834,203.44,203.39,0.17216157]
[1756803603504,5.0651834,203.44,203.4,26.0]
[1756803603702,5.0651834,203.43,203.39,0.03]
[1756803603902,38.44,203.42,203.39,0.03]
[1756803604294,0.71,203.41,203.39,0.03]
[1756803604896,0.71,203.4,203.39,0.03]
[1756803607187,42.7951834,203.42,203.39,0.03]
[1756803607188,39.15,203.42,203.39,0.03]
[1756803607497,38.44,203.41,203.39,4.3851834]
[1756803607699,38.44,203.41,203.4,4.3551834]
[1756803608105,0.71,203.43,203.4,30.3551834]
[1756803608312,4.3551834,203.47,203.41,4.3551834]
[1756803608518,13.59559401,203.45,203.43,9.27087921]
[1756803608699,14.30559401,203.45,203.43,9.27087921]
[1756803609698,0.71,203.45,203.43,9.27087921]
[1756803610003,0.72,203.47,203.44,4.3551834]
[1756803610205,38.44,203.46,203.44,4.3551834]
[1756803610510,39.16,203.46,203.45,4.91521258]
[1756803610713,0.78,203.49,203.45,9.27039598]
[1756803610901,38.44,203.48,203.45,9.27039598]
[1756803611102,38.44,203.48,203.47,4.3551834]
[1756803612619,38.44,203.48,203.47,9.26991284]
[1756803613029,38.44,203.48,203.45,0.14216157]
[1756803613198,0.72,203.47,203.45,26.0]
[1756803613405,38.44,203.48,203.45,30.3551834]
[1756803613726,38.44,203.48,203.47,4.3551834]
[1756803614104,39.16,203.48,203.47,4.3551834]
[1756803614625,39.16,203.48,203.47,9.26991284]
[1756803615117,39.16,203.48,203.47,4.91472944]
[1756803615696,39.16,203.48,203.46,4.914971]
[1756803615909,0.72,203.47,203.46,4.914971]
[1756803616109,0.72,203.47,203.46,9.2701544]
[1756803617626,38.5,203.48,203.46,9.2701544]
[1756803617826,39.22,203.48,203.47,4.3551834]
[1756803618421,38.5,203.48,203.47,9.26991284]
[1756803618620,39.22,203.48,203.47,9.26991284]
[1756803618823,39.22,203.48,203.46,9.27009869]
[1756803619022,39.22,203.48,203.46,4.91491529]
[1756803619334,39.22,203.48,203.46,9.27009869]
[1756803619567,5.0751834,203.47,203.44,26.0]
[1756803619826,0.72,203.46,203.42,0.03]
[1756803620026,38.42,203.45,203.42,0.03]
[1756803620599,0.72,203.44,203.42,0.03]
[1756803621304,38.42,203.45,203.42,4.94593746]
[1756803621519,38.42,203.45,203.42,9.30112086]
[1756803621710,0.72,203.44,203.42,9.30112086]
[1756803622129,38.42,203.45,203.42,9.30112086]
[1756803622307,39.14,203.45,203.42,9.30112086]
[1756803622509,0.72,203.44,203.42,4.94593746]
[1756803623206,38.42,203.45,203.42,4.94593746]
[1756803623407,0.72,203.44,203.42,4.94593746]
[1756803623622,0.72,203.43,203.42,4.94593746]
[1756803624002,39.14,203.45,203.42,9.30112086]
[1756803624508,0.72,203.44,203.42,9.30112086]
[1756803624717,38.42,203.45,203.42,9.30112086]
[1756803624914,39.14,203.45,203.42,4.94593746]
[1756803625114,39.14,203.45,203.42,9.30112086]
[1756803625316,0.72,203.44,203.42,9.30112086]
[1756803625511,0.72,203.44,203.42,4.94593746]
[1756803625716,0.72,203.44,203.42,9.30112086]
[1756803627932,38.42,203.45,203.42,26.03]
[1756803628238,0.6806812,203.43,203.42,0.03]
[1756803629813,13.59559401,203.42,203.39,0.03]
[1756803630017,17.95077741,203.4,203.39,0.03]
[1756803630317,18.23510055,203.4,203.39,0.03]
[1756803630527,14.59991715,203.4,203.39,0.03]
[1756803630736,18.95510055,203.4,203.39,0.03]
[1756803631328,14.59991715,203.4,203.39,0.03]
[1756803631533,18.95510055,203.4,203.39,0.03]
[1756803632616,14.31559401,203.4,203.39,0.03]
[1756803632814,4.3551834,203.41,203.39,0.03]
[1756803633032,38.42,203.4,203.39,0.03]
[1756803633232,5.0751834,203.41,203.39,0.03]
[1756803633432,38.42,203.4,203.39,0.03]
[1756803633717,39.14,203.4,203.39,0.03]
[1756803636250,38.42,203.4,203.39,0.03]
[1756803636415,43.4951834,203.4,203.39,0.03]
[1756803640339,39.14,203.4,203.39,0.03]
[1756803640558,43.4951834,203.4,203.39,0.03]
[1756803641123,57.09077741,203.4,203.39,0.03]
[1756803642340,4.3551834,203.4,203.39,0.03]
[1756803642655,43.4951834,203.4,203.39,0.03]
[1756803643025,57.09077741,203.4,203.39,0.03]
[1756803643227,61.73028395,203.4,203.39,0.03]
[1756803643539,55.81062324,203.4,203.39,0.03]
[1756803644545,53.01991715,203.4,203.39,0.03]
[1756803644749,55.81062324,203.4,203.39,0.03]
[1756803649754,71.88986844,203.4,203.39,0.03]
[1756803650141,13.87991715,203.39,203.37,4.34]
[1756803650346,55.81062324,203.38,203.37,4.34]
[1756803651577,60.72752755,203.38,203.37,4.34]
[1756803651744,75.51204323,203.38,203.37,4.34]
[1756803651945,72.72133714,203.38,203.37,4.34]
[1756803652258,13.87991715,203.37,203.36,10.0]
[1756803652467,17.39062324,203.37,203.25,0.55]
[1756803652765,2.79070609,203.29,203.26,26.0]
[1756803652963,38.42,203.28,203.27,0.55]
[1756803653269,2.79070609,203.29,203.25,0.55]
[1756803653442,38.42,203.28,203.25,0.55]
[1756803653640,14.31559401,203.31,203.26,5.46980714]
[1756803653840,14.31559401,203.31,203.26,4.91980714]
[1756803654074,41.21070609,203.3,203.27,0.55]
[1756803654248,2.79070609,203.29,203.26,4.91980714]
[1756803654558,13.59559401,203.27,203.25,4.91999701]
[1756803654761,38.42,203.26,203.25,4.91999701]
[1756803655062,38.42,203.26,203.25,5.46999701]
[1756803655239,38.42,203.26,203.25,4.91999701]
[1756803655854,38.42,203.26,203.24,30.92023215]
[1756803656154,38.42,203.27,203.25,0.55]
[1756803656345,38.42,203.27,203.24,43.22096035]
[1756803656547,38.42,203.27,203.25,0.55]
[1756803657276,38.42,203.27,203.26,0.55]
[1756803657442,38.42,203.27,203.26,5.46980714]
[1756803657639,38.42,203.27,203.26,4.91980714]
[1756803658063,38.42,203.27,203.26,5.46980714]
[1756803658562,38.42,203.27,203.26,4.91980714]
[1756803658753,13.59559401,203.26,203.21,4.92099599]
[1756803658957,39.14,203.25,203.21,30.92099599]
[1756803659264,38.42,203.25,203.21,30.92099599]
[1756803659469,38.42,203.25,203.21,34.26170208]
[1756803659970,38.42,203.25,203.21,31.47099599]
[1756803661082,38.42,203.24,203.21,31.47099599]
[1756803661384,0.72,203.27,203.23,7.71123947]
[1756803661546,38.42,203.26,203.23,7.71123947]
[1756803661746,39.14,203.26,203.23,7.71123947]
[1756803661947,38.42,203.26,203.22,7.71145732]
[1756803662169,39.14,203.26,203.22,7.71145732]
[1756803662370,38.42,203.26,203.23,2.79070609]
[1756803662559,38.42,203.26,203.24,2.79070609]
[1756803662869,0.72,203.25,203.22,4.92075123]
[1756803663058,0.72,203.25,203.23,2.79070609]
[1756803663263,0.72,203.25,203.22,7.71145732]
[1756803663470,0.72,203.24,203.22,7.71145732]
[1756803663666,38.42,203.23,203.22,7.71145732]
[1756803663984,38.42,203.24,203.22,8.26145732]
[1756803664155,38.42,203.25,203.23,2.79070609]
[1756803664357,38.42,203.25,203.24,2.79070609]
[1756803664666,14.31559401,203.3,203.24,3.34070609]
[1756803664869,39.14,203.29,203.26,2.79070609]
[1756803665067,38.42,203.29,203.26,2.79070609]
[1756803665263,0.72,203.28,203.22,17.77269001]
[1756803665459,0.72,203.28,203.25,2.79070609]
[1756803665680,38.42,203.29,203.24,4.92029128]
[1756803665681,0.72,203.27,203.24,4.92029128]
[1756803665882,39.14,203.26,203.24,4.92029128]
[1756803666198,39.14,203.26,203.22,4.92077551]
[1756803666406,0.72,203.28,203.25,2.79070609]
[1756803666572,14.59991715,203.3,203.26,2.79070609]
[1756803666773,14.31559401,203.32,203.29,2.79070609]
[1756803666991,13.59559401,203.3,203.25,26.0]
[1756803667305,0.72,203.29,203.25,28.79070609]
[1756803667479,38.42,203.28,203.27,7.7102712]
[1756803668485,38.42,203.28,203.27,4.91956511]
[1756803668686,38.42,203.28,203.27,7.7102712]
[1756803669275,13.59559401,203.33,203.27,8.2602712]
[1756803669475,13.59559401,203.33,203.25,40.92740589]
[1756803669476,12.29649304,203.31,203.25,14.78524432]
[1756803669773,0.28432314,203.24,203.15,2.79070609]
[1756803670100,13.59559401,203.19,203.15,28.79070609]
[1756803670270,39.12,203.18,203.15,26.0]
[1756803670464,39.12,203.18,203.15,28.79070609]
[1756803670669,39.12,203.18,203.15,33.7131123]
[1756803671305,26.0,203.29,203.16,2.79070609]
[1756803671471,13.59559401,203.21,203.18,2.79070609]
[1756803671872,13.59559401,203.21,203.19,2.79070609]
[1756803672168,13.59559401,203.22,203.19,2.79070609]
[1756803672568,14.29559401,203.22,203.19,2.79070609]
[1756803672868,14.29559401,203.22,203.2,4.92125984]
[1756803673991,14.29559401,203.22,203.18,26.0]
[1756803674195,14.29559401,203.22,203.18,7.71239348]
[1756803674377,14.29559401,203.22,203.19,26.0]
[1756803674694,14.29559401,203.22,203.19,28.79070609]
[1756803674989,14.29559401,203.22,203.19,30.92143856]
[1756803675489,39.08,203.21,203.19,33.71214465]
[1756803675788,39.08,203.21,203.19,30.92143856]
[1756803676479,39.08,203.21,203.19,33.71214465]
[1756803676797,39.08,203.21,203.19,30.92143856]
[1756803676992,39.08,203.21,203.19,33.71214465]
[1756803678268,39.06,203.25,203.2,2.79070609]
[1756803678472,0.7,203.24,203.21,2.79070609]
[1756803678780,39.06,203.25,203.23,4.92053338]
[1756803678996,39.76,203.25,203.23,4.92053338]
[1756803679582,0.7,203.24,203.23,4.92053338]
[1756803680869,39.06,203.25,203.23,4.92053338]
[1756803681074,39.06,203.25,203.24,2.79070609]
[1756803681582,39.06,203.25,203.23,4.92053338]
[1756803682103,39.76,203.25,203.23,4.92053338]
[1756803682475,39.76,203.25,203.21,14.78815962]
[1756803682476,13.59559401,203.23,203.21,14.78815962]
[1756803682688,52.61559401,203.22,203.19,4.92143994]
[1756803682887,0.7,203.21,203.18,4.92174426]
[1756803683104,52.61559401,203.22,203.18,33.71245035]
[1756803683284,0.7,203.21,203.18,26.0]
[1756803683491,0.7,203.2,203.17,4.9219339]
[1756803683793,2.79070609,203.21,203.17,4.9219339]
[1756803683794,39.72,203.19,203.17,4.9219339]
[1756803683984,0.7,203.18,203.15,4.92229857]
[1756803684186,0.7,203.17,203.1,4.92368291]
[1756803684386,39.02,203.16,203.15,26.0]
[1756803684600,39.02,203.16,203.15,2.79070609]
[1756803684912,39.02,203.16,203.12,14.79472321]
[1756803684913,39.72,203.16,203.13,7.71366183]
[1756803685115,0.7,203.15,203.13,4.92295574]
[1756803685304,14.29559401,203.14,203.11,2.79070609]
[1756803685511,39.02,203.13,203.11,28.79070609]
[1756803685808,39.02,203.13,203.11,26.0]
[1756803686103,39.72,203.13,203.1,2.79070609]
[1756803686282,39.72,203.13,203.08,14.79472321]
[1756803686476,0.7,203.12,203.08,14.79472321]
[1756803686677,0.7,203.17,203.09,0.55]
[1756803687000,39.1,203.16,203.15,2.79070609]
[1756803687182,39.1,203.16,203.13,30.92286768]
[1756803687679,39.16,203.17,203.16,26.0]
[1756803688197,0.7,203.2,203.16,2.79070609]
[1756803688401,14.29559401,203.23,203.19,2.79070609]
[1756803688592,39.18,203.22,203.21,2.79070609]
[1756803688788,39.18,203.22,203.21,4.92101766]
[1756803689007,39.18,203.22,203.21,7.71172375]
[1756803690488,39.88,203.22,203.21,4.92101766]
[1756803690690,39.16,203.22,203.21,7.71172375]
[1756803690909,39.16,203.22,203.21,4.92101766]
[1756803691076,39.16,203.22,203.21,7.71172375]
[1756803692324,39.16,203.22,203.19,26.0]
[1756803692325,39.86,203.22,203.2,4.92115895]
[1756803692526,0.7,203.21,203.2,4.92115895]
[1756803694084,0.7,203.21,203.2,7.71186504]
[1756803694382,0.7,203.21,203.19,2.79070609]
[1756803694680,39.16,203.22,203.19,2.79070609]
[1756803694681,0.7,203.2,203.19,2.79070609]
[1756803694901,39.86,203.22,203.19,2.79070609]
[1756803695110,0.7,203.21,203.19,2.79070609]
[1756803695497,0.7,203.21,203.2,4.92125984]
[1756803696004,39.16,203.22,203.2,7.71196593]
[1756803696190,39.16,203.22,203.21,2.79070609]
[1756803696510,39.1,203.22,203.21,2.79070609]
[1756803697711,39.1,203.22,203.21,7.71172375]
[1756803699210,0.82216157,203.27,203.21,20.01426791]
[1756803699411,13.59559401,203.28,203.26,2.79070609]
[1756803699602,35.46,203.32,203.27,7.7102712]
[1756803699918,14.78743069,203.33,203.31,2.79070609]
[1756803700085,39.78,203.35,203.32,2.79070609]
[1756803700486,39.78,203.35,203.34,2.79070609]
[1756803700703,0.06,203.36,203.34,2.79070609]
[1756803700907,39.22,203.36,203.35,2.79070609]
[1756803701700,39.22,203.36,203.35,7.70833579]
[1756803702998,39.22,203.36,203.35,7.70833579]
[1756803703410,39.22,203.36,203.35,11.89081418]
[1756803705623,39.22,203.36,203.35,15.30408739]
[1756803708227,0.06,203.36,203.35,15.99624896]
[1756803710307,0.06,203.36,203.35,16.02624896]
[1756803711228,0.06,203.39,203.38,26.14216157]
[1756803711445,0.74,203.39,203.38,26.0]
[1756803711650,0.74,203.39,203.38,36.38645769]
[1756803712018,0.74,203.39,203.38,26.0]
[1756803712219,0.74,203.39,203.38,36.38645769]
[1756803712719,0.74,203.39,203.38,41.303362]
[1756803715047,0.74,203.39,203.38,30.91690431]
[1756803715247,0.74,203.39,203.38,41.303362]
[1756803715632,0.74,203.39,203.38,36.38645769]
[1756803717532,0.74,203.39,203.38,41.303362]
[1756803717849,0.74,203.39,203.38,30.91690431]
[1756803718052,0.74,203.39,203.38,41.303362]
[1756803718218,0.74,203.39,203.38,30.91690431]
[1756803718425,0.74,203.39,203.38,41.303362]
[1756803719149,0.74,203.39,203.38,26.0]
[1756803719943,0.74,203.39,203.38,36.38645769]
[1756803720129,0.74,203.39,203.38,26.0]
[1756803720329,0.74,203.39,203.38,30.91690431]
[1756803721850,39.04,203.39,203.38,41.303362]
[1756803722151,0.06,203.39,203.38,41.303362]
[1756803722324,39.04,203.39,203.38,41.303362]
[1756803722945,0.06,203.39,203.38,30.91690431]
[1756803723146,0.74,203.39,203.38,41.303362]
[1756803723551,0.74,203.39,203.38,35.27427053]
[1756803725235,0.06,203.39,203.38,35.27427053]
[1756803725550,0.06,203.39,203.38,30.91690431]
[1756803725759,0.06,203.39,203.38,35.27427053]
[1756803728158,38.96,203.39,203.38,35.27427053]
[1756803728766,38.96,203.39,203.38,30.91690431]
[1756803729066,38.96,203.39,203.38,35.27427053]
[1756803729442,38.96,203.39,203.38,30.91690431]
[1756803729738,38.96,203.39,203.38,35.82427053]
[1756803729739,0.06,203.39,203.38,35.82427053]
[1756803729959,0.06,203.39,203.38,31.46690431]
[1756803730156,0.06,203.39,203.38,35.82427053]
[1756803731738,0.06,203.39,203.38,35.27427053]
[1756803732966,0.74,203.39,203.38,30.91690431]
[1756803733871,0.06,203.39,203.38,35.27427053]
[1756803734075,0.06,203.39,203.38,35.82427053]
[1756803734768,1e-08,203.39,203.38,35.9664321]
[1756803734970,0.06,203.41,203.38,35.9664321]
[1756803734971,1e-08,203.41,203.38,35.9664321]
[1756803735160,1e-08,203.41,203.4,4.49952779]
[1756803735550,1e-08,203.41,203.4,26.14216157]
[1756803735853,1e-08,203.41,203.4,9.41594863]
[1756803738477,1e-08,203.41,203.4,9.96594863]
[1756803739059,0.06,203.42,203.4,53.12331485]
[1756803739060,1e-08,203.42,203.4,53.12331485]
[1756803739269,1e-08,203.42,203.41,5.04952779]
[1756803739459,0.06,203.45,203.44,26.0]
[1756803739460,1e-08,203.45,203.44,26.0]
[1756803739663,1e-08,203.45,203.44,30.35736622]
[1756803739881,1e-08,203.47,203.44,31.04952779]
[1756803740186,0.06,203.54,203.48,26.0]
[1756803740353,0.06,203.54,203.51,4.49952779]
[1756803740681,0.1,203.57,203.54,26.14216157]
[1756803740883,0.1,203.57,203.56,4.35736622]
[1756803741580,0.1,203.57,203.56,9.26992271]
[1756803742169,0.1,203.57,203.56,9.81992271]
[1756803742882,0.1,203.57,203.56,9.26992271]
[1756803743058,0.1,203.57,203.56,9.81992271]
[1756803743566,0.1,203.57,203.56,31.05471806]
[1756803743759,0.1,203.57,203.56,35.41208428]
[1756803744677,0.1,203.57,203.56,35.96208428]
[1756803745287,0.1,203.57,203.56,4.49952779]
[1756803745485,0.1,203.57,203.56,9.41208428]
[1756803747488,0.78,203.57,203.56,9.41208428]
[1756803747701,0.78,203.57,203.49,4.9142464]
[1756803747866,0.68,203.56,203.51,4.35736622]
[1756803748188,0.68,203.55,203.52,26.0]
[1756803748487,0.68,203.54,203.52,4.35736622]
[1756803748669,4.45736622,203.57,203.52,30.35736622]
[1756803748869,0.68,203.53,203.52,30.35736622]
[1756803749081,0.68,203.53,203.52,9.27088823]
[1756803749458,0.68,203.53,203.52,4.91352201]
[1756803749960,0.68,203.55,203.52,4.91352201]
[1756803750195,0.1,203.57,203.55,26.14216157]
[1756803750495,0.1,203.57,203.56,4.49952779]
[1756803750659,0.1,203.57,203.56,30.49952779]
[1756803751056,0.1,203.57,203.56,35.41208428]
[1756803754188,0.1,203.57,203.56,31.05471806]
[1756803754391,0.1,203.57,203.56,35.41208428]
[1756803754684,0.1,203.57,203.52,12.28380503]
[1756803754685,0.78,203.57,203.54,35.27027742]
[1756803754883,0.68,203.56,203.54,35.27027742]
[1756803755088,0.1,203.57,203.54,9.27027742]
[1756803755279,0.1,203.57,203.56,30.35736622]
[1756803755478,0.1,203.57,203.56,35.26992271]
[1756803756208,0.1,203.57,203.56,35.41208428]
[1756803758985,0.1,203.57,203.56,31.05471806]
[1756803759195,0.1,203.57,203.56,35.41208428]
[1756803762309,0.1,203.57,203.56,35.96208428]
[1756803762310,1e-08,203.57,203.56,35.96208428]
[1756803762477,1e-08,203.57,203.56,74.88208428]
[1756803764523,1e-08,203.59,203.58,4.49952779]
[1756803764713,1e-08,203.59,203.58,43.39952779]
[1756803765715,1e-08,203.59,203.58,41.82426512]
[1756803766411,1e-08,203.59,203.58,46.73633899]
[1756803767506,1e-08,203.6,203.59,0.14216157]
[1756803767712,1e-08,203.6,203.59,3.47426512]
[1756803768911,1e-08,203.6,203.59,7.83609772]
[1756803769118,0.69000001,203.6,203.59,7.83609772]
[1756803769306,0.69000001,203.6,203.59,30.9118326]
[1756803769510,0.69000001,203.6,203.59,33.69393615]
[1756803770709,0.69000001,203.6,203.59,30.9118326]
[1756803770908,0.69000001,203.6,203.59,33.69393615]
[1756803771114,1e-08,203.6,203.59,33.83609772]
[1756803772327,0.79,203.63,203.6,0.14216157]
[1756803772328,0.1,203.63,203.6,0.14216157]
[1756803772620,0.1,203.68,203.63,0.14216157]
[1756803772931,0.79,203.68,203.67,2.78210355]
[1756803773312,0.79,203.68,203.67,2.92426512]
[1756803774519,0.79,203.68,203.66,7.6922479]
[1756803774720,0.69,203.67,203.66,7.6922479]
[1756803776831,0.69,203.67,203.66,26.0]
[1756803777048,0.69,203.67,203.66,2.78210355]
[1756803777210,0.69,203.67,203.66,28.78210355]
[1756803778018,0.69,203.67,203.66,26.0]
[1756803778628,3.47210355,203.67,203.6,4.91159135]
[1756803778829,0.69,203.66,203.62,33.69321247]
[1756803779137,0.69,203.65,203.64,28.78210355]
[1756803780526,0.69,203.65,203.64,26.0]
[1756803781040,0.69,203.65,203.64,30.91062659]
[1756803781447,0.69,203.65,203.64,26.0]
[1756803781621,0.69,203.65,203.63,26.0]
[1756803781813,0.69,203.64,203.63,26.0]
[1756803783339,3.47210355,203.64,203.61,0.14216157]
[1756803783719,2.78210355,203.62,203.57,38.8]